[Event "Titled Tuesday Blitz March 22 Early 2022"]
[White "Donchenko, Alexander"]
[Black "Terry, Renato"]
[WhiteFideId "24603295"]
[BlackFideId "3803457"]
[WhiteElo "2539"]
[BlackElo "2577"]
[Result "1-0"]
[Round "06"]
[TimeControl "180+1"]
[Date "2022.03.22"]
[WhiteClock "0:00:08"]
[BlackClock "0:00:02"]

1. Nf3 {[%clk 0:03:00]}  Nf6 {[%clk 0:02:59]} 2. c4 {[%clk 0:03:01]}  b6 {[%clk 0:02:58]} 3. g3 {[%clk 0:03:01]}  Bb7 {[%clk 0:02:58]} 4. Bg2 {[%clk 0:03:01]}  g6 {[%clk 0:02:59]} 5. O-O {[%clk 0:02:59]}  Bg7 {[%clk 0:02:59]} 6. d4 {[%clk 0:02:59]}  e6 {[%clk 0:02:58]} 7. Qc2 {[%clk 0:02:57]}  O-O {[%clk 0:02:56]} 8. Nc3 {[%clk 0:02:57]}  d6 {[%clk 0:02:52]} 9. e4 {[%clk 0:02:57]}  Nbd7 {[%clk 0:02:52]} 10. Be3 {[%clk 0:02:46]}  Ng4 {[%clk 0:02:31]} 11. Bg5 {[%clk 0:02:45]}  f6 {[%clk 0:02:31]} 12. Bd2 {[%clk 0:02:43]}  e5 {[%clk 0:02:31]} 13. b4 {[%clk 0:02:33]}  c6 {[%clk 0:02:19]} 14. Rad1 {[%clk 0:02:23]}  Qe7 {[%clk 0:02:18]} 15. b5 {[%clk 0:02:11]}  c5 {[%clk 0:02:07]} 16. dxe5 {[%clk 0:02:07]}  dxe5 {[%clk 0:02:00]} 17. Bh3 {[%clk 0:02:00]}  f5 {[%clk 0:01:49]} 18. Bg5 {[%clk 0:01:58]}  Qf7 {[%clk 0:01:46]} 19. Nd5 {[%clk 0:01:54]}  Rae8 {[%clk 0:01:16]} 20. Rfe1 {[%clk 0:01:49]}  h6 {[%clk 0:01:13]} 21. Bc1 {[%clk 0:01:48]}  Bxd5 {[%clk 0:00:51]} 22. cxd5 {[%clk 0:01:31]}  fxe4 {[%clk 0:00:26]} 23. Qxe4 {[%clk 0:01:24]}  Ndf6 {[%clk 0:00:22]} 24. Qe2 {[%clk 0:01:22]}  e4 {[%clk 0:00:21]} 25. Nh4 {[%clk 0:01:18]}  h5 {[%clk 0:00:21]} 26. Bb2 {[%clk 0:01:13]}  Nxd5 {[%clk 0:00:17]} 27. Bxg7 {[%clk 0:01:12]}  Kxg7 {[%clk 0:00:18]} 28. Rf1 {[%clk 0:01:03]}  Nc3 {[%clk 0:00:11]} 29. Qb2 {[%clk 0:01:03]}  Qf6 {[%clk 0:00:12]} 30. Bxg4 {[%clk 0:00:56]}  hxg4 {[%clk 0:00:11]} 31. Rd7+ {[%clk 0:00:51]}  Rf7 {[%clk 0:00:11]} 32. Rxf7+ {[%clk 0:00:51]}  Kxf7 {[%clk 0:00:12]} 33. Ng2 {[%clk 0:00:51]}  Nd5 {[%clk 0:00:08]} 34. Qb3 {[%clk 0:00:49]}  Qe6 {[%clk 0:00:08]} 35. Rd1 {[%clk 0:00:49]}  Nf6 {[%clk 0:00:08]} 36. Qa3 {[%clk 0:00:46]}  Re7 {[%clk 0:00:08]} 37. Ne3 {[%clk 0:00:44]}  Rd7 {[%clk 0:00:07]} 38. Re1 {[%clk 0:00:37]}  Nh7 {[%clk 0:00:05]} 39. Ng2 {[%clk 0:00:24]}  Ng5 {[%clk 0:00:05]} 40. Nf4 {[%clk 0:00:25]}  Nf3+ {[%clk 0:00:03]} 41. Kh1 {[%clk 0:00:24]}  Nxe1 {[%clk 0:00:01]} 42. Nxe6 {[%clk 0:00:24]}  Rd1 {[%clk 0:00:02]} 43. Qb3 {[%clk 0:00:19]}  Ra1 {[%clk 0:00:01]} 44. Nf4+ {[%clk 0:00:09]}  Kf8 {[%clk 0:00:01]} 45. Nxg6+ {[%clk 0:00:08]}  Ke8 {[%clk 0:00:01]} 46. Qe6+ {[%clk 0:00:07]}  Kd8 {[%clk 0:00:01]} 47. Qf6+ {[%clk 0:00:07]}  Kc8 {[%clk 0:00:02]} 48. Qxa1 {[%clk 0:00:08]} 1-0


[Site "https://www.chess.com"]

[Event "Titled Tuesday Blitz March 22 Early 2022"]
[White "Gabdrakhmanov, Azat"]
[Black "Omelja, Artem"]
[WhiteFideId "34189197"]
[BlackFideId "14119846"]
[WhiteElo "2279"]
[BlackElo "2382"]
[Result "0-1"]
[Round "06"]
[TimeControl "180+1"]
[Date "2022.03.22"]
[WhiteClock "0:00:21"]
[BlackClock "0:00:13"]

1. e4 {[%clk 0:03:00]}  c5 {[%clk 0:02:59]} 2. Nf3 {[%clk 0:03:00]}  e6 {[%clk 0:02:59]} 3. d4 {[%clk 0:03:01]}  cxd4 {[%clk 0:02:59]} 4. Nxd4 {[%clk 0:03:02]}  Nf6 {[%clk 0:03:00]} 5. Nc3 {[%clk 0:03:02]}  Nc6 {[%clk 0:02:55]} 6. Ndb5 {[%clk 0:03:02]}  Bc5 {[%clk 0:02:55]} 7. Nd6+ {[%clk 0:03:02]}  Ke7 {[%clk 0:02:55]} 8. Bf4 {[%clk 0:03:02]}  e5 {[%clk 0:02:52]} 9. Nf5+ {[%clk 0:03:02]}  Kf8 {[%clk 0:02:52]} 10. Bg5 {[%clk 0:03:03]}  h6 {[%clk 0:02:39]} 11. Bh4 {[%clk 0:02:55]}  g5 {[%clk 0:02:31]} 12. Bg3 {[%clk 0:02:52]}  d5 {[%clk 0:02:31]} 13. exd5 {[%clk 0:02:43]}  Bxf5 {[%clk 0:02:30]} 14. dxc6 {[%clk 0:02:42]}  bxc6 {[%clk 0:02:22]} 15. Qf3 {[%clk 0:02:27]}  Qd7 {[%clk 0:01:40]} 16. Rd1 {[%clk 0:02:21]}  Qc8 {[%clk 0:00:35]} 17. Bd3 {[%clk 0:02:04]}  e4 {[%clk 0:00:20]} 18. Nxe4 {[%clk 0:01:50]}  Qe6 {[%clk 0:00:16]} 19. O-O {[%clk 0:01:28]}  Bxe4 {[%clk 0:00:14]} 20. Bxe4 {[%clk 0:01:25]}  Nxe4 {[%clk 0:00:15]} 21. Rfe1 {[%clk 0:01:24]}  f5 {[%clk 0:00:14]} 22. Rxe4 {[%clk 0:01:19]}  Qxe4 {[%clk 0:00:13]} 23. Qc3 {[%clk 0:01:18]}  Kf7 {[%clk 0:00:06]} 24. Qxc5 {[%clk 0:01:15]}  Rhd8 {[%clk 0:00:04]} 25. Rf1 {[%clk 0:01:07]}  f4 {[%clk 0:00:05]} 26. f3 {[%clk 0:00:48]}  Qd4+ {[%clk 0:00:04]} 27. Bf2 {[%clk 0:00:39]}  Qxc5 {[%clk 0:00:04]} 28. Bxc5 {[%clk 0:00:39]}  Rd2 {[%clk 0:00:04]} 29. Rc1 {[%clk 0:00:37]}  Re8 {[%clk 0:00:03]} 30. Bb4 {[%clk 0:00:38]}  Rde2 {[%clk 0:00:02]} 31. Kf1 {[%clk 0:00:38]}  R2e5 {[%clk 0:00:01]} 32. Bc3 {[%clk 0:00:37]}  Rb5 {[%clk 0:00:01]} 33. a4 {[%clk 0:00:37]}  Rd5 {[%clk 0:00:02]} 34. a5 {[%clk 0:00:37]}  Re3 {[%clk 0:00:02]} 35. Ra1 {[%clk 0:00:35]}  a6 {[%clk 0:00:02]} 36. Ra4 {[%clk 0:00:34]}  Ke6 {[%clk 0:00:02]} 37. Ra1 {[%clk 0:00:34]}  Kd7 {[%clk 0:00:02]} 38. h3 {[%clk 0:00:34]}  Re6 {[%clk 0:00:02]} 39. Kf2 {[%clk 0:00:33]}  Rb5 {[%clk 0:00:02]} 40. Rh1 {[%clk 0:00:32]}  Rd5 {[%clk 0:00:02]} 41. h4 {[%clk 0:00:32]}  Kd6 {[%clk 0:00:03]} 42. hxg5 {[%clk 0:00:32]}  hxg5 {[%clk 0:00:03]} 43. Rh8 {[%clk 0:00:32]}  Kc5 {[%clk 0:00:04]} 44. Ra8 {[%clk 0:00:32]}  Kb5 {[%clk 0:00:04]} 45. Rb8+ {[%clk 0:00:32]}  Kc5 {[%clk 0:00:03]} 46. Rb6 {[%clk 0:00:28]}  Rd1 {[%clk 0:00:02]} 47. Rxa6 {[%clk 0:00:23]}  Rc1 {[%clk 0:00:02]} 48. Ra8 {[%clk 0:00:18]}  Rxc2+ {[%clk 0:00:02]} 49. Kf1 {[%clk 0:00:18]}  Rc1+ {[%clk 0:00:02]} 50. Kf2 {[%clk 0:00:18]}  Rc2+ {[%clk 0:00:02]} 51. Kf1 {[%clk 0:00:18]}  Ree2 {[%clk 0:00:03]} 52. Rd8 {[%clk 0:00:16]}  Rf2+ {[%clk 0:00:03]} 53. Ke1 {[%clk 0:00:16]}  Rxg2 {[%clk 0:00:03]} 54. Kf1 {[%clk 0:00:14]}  Rcf2+ {[%clk 0:00:04]} 55. Ke1 {[%clk 0:00:14]}  Rxf3 {[%clk 0:00:04]} 56. a6 {[%clk 0:00:12]}  Rh3 {[%clk 0:00:04]} 57. Bd4+ {[%clk 0:00:11]}  Kb5 {[%clk 0:00:04]} 58. Kf1 {[%clk 0:00:11]}  Rc2 {[%clk 0:00:03]} 59. a7 {[%clk 0:00:10]}  Rc1+ {[%clk 0:00:02]} 60. Kg2 {[%clk 0:00:10]}  Rg3+ {[%clk 0:00:02]} 61. Kf2 {[%clk 0:00:11]}  Rc2+ {[%clk 0:00:02]} 62. Kf1 {[%clk 0:00:11]}  Rc1+ {[%clk 0:00:02]} 63. Ke2 {[%clk 0:00:11]}  Rg2+ {[%clk 0:00:02]} 64. Kd3 {[%clk 0:00:11]}  Rg3+ {[%clk 0:00:02]} 65. Ke4 {[%clk 0:00:11]}  Re1+ {[%clk 0:00:02]} 66. Kf5 {[%clk 0:00:11]}  Ra1 {[%clk 0:00:03]} 67. Rb8+ {[%clk 0:00:10]}  Kc4 {[%clk 0:00:02]} 68. Be5 {[%clk 0:00:11]}  Rxa7 {[%clk 0:00:01]} 69. Rc8 {[%clk 0:00:08]}  c5 {[%clk 0:00:01]} 70. Bd6 {[%clk 0:00:08]}  Ra5 {[%clk 0:00:02]} 71. Bc7 {[%clk 0:00:08]}  Rb5 {[%clk 0:00:02]} 72. Be5 {[%clk 0:00:09]}  Rgb3 {[%clk 0:00:02]} 73. Kxg5 {[%clk 0:00:08]}  f3 {[%clk 0:00:03]} 74. Rf8 {[%clk 0:00:09]}  Rxb2 {[%clk 0:00:03]} 75. Bxb2 {[%clk 0:00:07]}  Rxb2 {[%clk 0:00:04]} 76. Rxf3 {[%clk 0:00:08]}  Re2 {[%clk 0:00:04]} 77. Kf4 {[%clk 0:00:08]}  Kb4 {[%clk 0:00:04]} 78. Re3 {[%clk 0:00:07]}  Rxe3 {[%clk 0:00:04]} 79. Kxe3 {[%clk 0:00:08]}  Kc3 {[%clk 0:00:05]} 80. Ke2 {[%clk 0:00:08]}  c4 {[%clk 0:00:03]} 81. Ke3 {[%clk 0:00:09]}  Kb2 {[%clk 0:00:03]} 82. Kd2 {[%clk 0:00:09]}  c3+ {[%clk 0:00:04]} 83. Kd3 {[%clk 0:00:10]}  c2 {[%clk 0:00:05]} 84. Kd2 {[%clk 0:00:11]}  c1=Q+ {[%clk 0:00:06]} 85. Kd3 {[%clk 0:00:12]}  Qc3+ {[%clk 0:00:06]} 86. Ke4 {[%clk 0:00:12]}  Kc2 {[%clk 0:00:07]} 87. Kd5 {[%clk 0:00:13]}  Qd3+ {[%clk 0:00:08]} 88. Ke6 {[%clk 0:00:14]}  Kc3 {[%clk 0:00:09]} 89. Ke5 {[%clk 0:00:14]}  Qd4+ {[%clk 0:00:10]} 90. Ke6 {[%clk 0:00:14]}  Kc4 {[%clk 0:00:11]} 91. Kf5 {[%clk 0:00:15]}  Qd5+ {[%clk 0:00:12]} 92. Kg6 {[%clk 0:00:16]}  Kd4 {[%clk 0:00:12]} 93. Kf6 {[%clk 0:00:17]}  Qe5+ {[%clk 0:00:13]} 94. Kf7 {[%clk 0:00:18]}  Ke4 {[%clk 0:00:13]} 95. Kf8 {[%clk 0:00:19]}  Kf5 {[%clk 0:00:14]} 96. Kf7 {[%clk 0:00:20]}  Qc7+ {[%clk 0:00:13]} 97. Ke8 {[%clk 0:00:20]}  Ke6 {[%clk 0:00:13]} 98. Kf8 {[%clk 0:00:21]}  Qf7# {[%clk 0:00:13]} 0-1


[Site "https://www.chess.com"]

[Event "Titled Tuesday Blitz March 22 Early 2022"]
[White "Gabrielian, Artur"]
[Black "Saldano Dayer, Horacio"]
[WhiteFideId "4131002"]
[BlackFideId "103411"]
[WhiteElo "2440"]
[BlackElo "2419"]
[Result "1/2-1/2"]
[Round "06"]
[TimeControl "180+1"]
[Date "2022.03.22"]
[WhiteClock "0:00:11"]
[BlackClock "0:00:05"]

1. e4 {[%clk 0:03:00]}  e6 {[%clk 0:02:59]} 2. d3 {[%clk 0:03:00]}  d5 {[%clk 0:02:58]} 3. Qe2 {[%clk 0:03:01]}  Be7 {[%clk 0:02:56]} 4. Nf3 {[%clk 0:03:01]}  Nf6 {[%clk 0:02:55]} 5. g3 {[%clk 0:03:01]}  b5 {[%clk 0:02:55]} 6. Bg2 {[%clk 0:03:00]}  b4 {[%clk 0:02:55]} 7. O-O {[%clk 0:02:58]}  dxe4 {[%clk 0:02:54]} 8. Ne5 {[%clk 0:02:42]}  O-O {[%clk 0:02:34]} 9. dxe4 {[%clk 0:02:37]}  Ba6 {[%clk 0:02:28]} 10. Nd3 {[%clk 0:02:36]}  Nbd7 {[%clk 0:02:20]} 11. Rd1 {[%clk 0:02:32]}  Ne5 {[%clk 0:01:59]} 12. Bf4 {[%clk 0:02:17]}  Nxd3 {[%clk 0:01:58]} 13. cxd3 {[%clk 0:02:17]}  c5 {[%clk 0:01:55]} 14. Qc2 {[%clk 0:02:10]}  Rc8 {[%clk 0:01:51]} 15. a3 {[%clk 0:02:05]}  c4 {[%clk 0:01:21]} 16. dxc4 {[%clk 0:01:57]}  Rxc4 {[%clk 0:01:21]} 17. Qb3 {[%clk 0:01:50]}  Qc8 {[%clk 0:01:08]} 18. Nd2 {[%clk 0:01:43]}  bxa3 {[%clk 0:00:54]} 19. Nxc4 {[%clk 0:01:39]}  Bxc4 {[%clk 0:00:54]} 20. Qc3 {[%clk 0:01:37]}  axb2 {[%clk 0:00:52]} 21. Qxb2 {[%clk 0:01:37]}  Qa8 {[%clk 0:00:19]} 22. Be3 {[%clk 0:01:29]}  a6 {[%clk 0:00:17]} 23. Qd4 {[%clk 0:01:17]}  Bb5 {[%clk 0:00:15]} 24. e5 {[%clk 0:01:04]}  Nd5 {[%clk 0:00:15]} 25. Bxd5 {[%clk 0:01:04]}  exd5 {[%clk 0:00:15]} 26. Qxd5 {[%clk 0:01:04]}  Bc6 {[%clk 0:00:15]} 27. Qd3 {[%clk 0:00:51]}  Bh1 {[%clk 0:00:15]} 28. Qf1 {[%clk 0:00:51]}  h5 {[%clk 0:00:12]} 29. Rxa6 {[%clk 0:00:50]}  Qf3 {[%clk 0:00:13]} 30. Ra4 {[%clk 0:00:48]}  Qc6 {[%clk 0:00:12]} 31. Rc4 {[%clk 0:00:47]}  Qa8 {[%clk 0:00:12]} 32. Rf4 {[%clk 0:00:45]}  Bf3 {[%clk 0:00:10]} 33. Ra1 {[%clk 0:00:42]}  Qd5 {[%clk 0:00:10]} 34. Qc4 {[%clk 0:00:40]}  Qb7 {[%clk 0:00:07]} 35. e6 {[%clk 0:00:34]}  Ra8 {[%clk 0:00:06]} 36. exf7+ {[%clk 0:00:30]}  Kf8 {[%clk 0:00:06]} 37. Rxa8+ {[%clk 0:00:29]}  Qxa8 {[%clk 0:00:06]} 38. Rxf3 {[%clk 0:00:19]}  Qxf3 {[%clk 0:00:05]} 39. Bc5 {[%clk 0:00:10]}  Bxc5 {[%clk 0:00:03]} 40. Qxc5+ {[%clk 0:00:11]}  Kxf7 {[%clk 0:00:04]} 41. Qc7+ {[%clk 0:00:11]}  Kg6 {[%clk 0:00:04]} 42. Qd6+ {[%clk 0:00:11]}  Kh7 {[%clk 0:00:04]} 43. Qd2 {[%clk 0:00:11]}  g6 {[%clk 0:00:03]} 44. Qe1 {[%clk 0:00:11]}  Qf5 {[%clk 0:00:03]} 45. Qe3 {[%clk 0:00:10]}  Kg7 {[%clk 0:00:03]} 46. Kg2 {[%clk 0:00:10]}  Kh7 {[%clk 0:00:03]} 47. Qf3 {[%clk 0:00:10]}  Qe6 {[%clk 0:00:03]} 48. Qb7+ {[%clk 0:00:10]}  Kh6 {[%clk 0:00:02]} 49. h3 {[%clk 0:00:11]}  g5 {[%clk 0:00:02]} 50. Qf3 {[%clk 0:00:10]}  g4 {[%clk 0:00:02]} 51. Qf4+ {[%clk 0:00:11]}  Kg6 {[%clk 0:00:02]} 52. h4 {[%clk 0:00:11]}  Qd5+ {[%clk 0:00:02]} 53. Kh2 {[%clk 0:00:12]}  Qc5 {[%clk 0:00:02]} 54. Qe4+ {[%clk 0:00:12]}  Kf6 {[%clk 0:00:01]} 55. Qe3 {[%clk 0:00:11]}  Qxe3 {[%clk 0:00:01]} 56. fxe3 {[%clk 0:00:12]}  Ke5 {[%clk 0:00:02]} 57. Kg2 {[%clk 0:00:12]}  Ke4 {[%clk 0:00:02]} 58. Kf2 {[%clk 0:00:13]}  Kd3 {[%clk 0:00:03]} 59. e4 {[%clk 0:00:10]}  Kxe4 {[%clk 0:00:03]} 60. Ke2 {[%clk 0:00:10]}  Kd4 {[%clk 0:00:04]} 61. Kd2 {[%clk 0:00:11]}  Ke4 {[%clk 0:00:04]} 62. Ke2 {[%clk 0:00:11]}  Kd4 {[%clk 0:00:05]} 63. Kd2 {[%clk 0:00:12]}  Ke4 {[%clk 0:00:05]} 64. Ke2 {[%clk 0:00:11]} 1/2-1/2


[Site "https://www.chess.com"]

[Event "Titled Tuesday Blitz March 22 Early 2022"]
[White "Golubka, Petro"]
[Black "Gubanov, Oleg"]
[WhiteFideId "14114224"]
[BlackFideId "14115115"]
[WhiteElo "2346"]
[BlackElo "2080"]
[Result "0-1"]
[Round "06"]
[TimeControl "180+1"]
[Date "2022.03.22"]
[WhiteClock "0:02:48"]
[BlackClock "0:01:20"]

1. d4 {[%clk 0:03:00]}  b5 {[%clk 0:02:59]} 2. c3 {[%clk 0:03:01]}  Bb7 {[%clk 0:02:59]} 3. a4 {[%clk 0:03:02]}  a6 {[%clk 0:02:55]} 4. Na3 {[%clk 0:03:01]}  bxa4 {[%clk 0:02:49]} 5. Nf3 {[%clk 0:03:01]}  e6 {[%clk 0:02:43]} 6. e3 {[%clk 0:03:00]}  Nf6 {[%clk 0:02:38]} 7. Bd3 {[%clk 0:02:59]}  Be7 {[%clk 0:02:36]} 8. O-O {[%clk 0:02:58]}  O-O {[%clk 0:02:36]} 9. Re1 {[%clk 0:02:58]}  d5 {[%clk 0:02:30]} 10. Qxa4 {[%clk 0:02:57]}  c5 {[%clk 0:02:30]} 11. Ne5 {[%clk 0:02:57]}  Qc7 {[%clk 0:02:23]} 12. f4 {[%clk 0:02:54]}  Nbd7 {[%clk 0:02:23]} 13. Bd2 {[%clk 0:02:54]}  c4 {[%clk 0:02:14]} 14. Be2 {[%clk 0:02:53]}  Nxe5 {[%clk 0:02:12]} 15. fxe5 {[%clk 0:02:52]}  Ne4 {[%clk 0:02:12]} 16. Qc2 {[%clk 0:02:53]}  f5 {[%clk 0:01:56]} 17. exf6 {[%clk 0:02:52]}  Rxf6 {[%clk 0:01:56]} 18. Bf3 {[%clk 0:02:52]}  Rh6 {[%clk 0:01:56]} 19. h3 {[%clk 0:02:50]}  Qg3 {[%clk 0:01:30]} 20. Bxe4 {[%clk 0:02:49]}  dxe4 {[%clk 0:01:30]} 21. Nxc4 {[%clk 0:02:49]}  Rxh3 {[%clk 0:01:29]} 22. Ne5 {[%clk 0:02:48]}  Rf8 {[%clk 0:01:20]} 0-1


[Site "https://www.chess.com"]

[Event "Titled Tuesday Blitz March 22 Early 2022"]
[White "Goriatchkin, Jouri"]
[Black "Grieve, Harry"]
[WhiteFideId "4120183"]
[BlackFideId "426520"]
[WhiteElo "1585"]
[BlackElo "2294"]
[Result "0-1"]
[Round "06"]
[TimeControl "180+1"]
[Date "2022.03.22"]
[WhiteClock "0:00:01"]
[BlackClock "0:00:06"]

1. d4 {[%clk 0:03:00]}  d5 {[%clk 0:02:59]} 2. c4 {[%clk 0:03:01]}  e6 {[%clk 0:02:57]} 3. Nc3 {[%clk 0:03:01]}  c6 {[%clk 0:02:56]} 4. e3 {[%clk 0:02:58]}  f5 {[%clk 0:02:55]} 5. Nf3 {[%clk 0:02:59]}  Nf6 {[%clk 0:02:55]} 6. Be2 {[%clk 0:02:48]}  Bd6 {[%clk 0:02:53]} 7. O-O {[%clk 0:02:47]}  O-O {[%clk 0:02:54]} 8. a3 {[%clk 0:02:47]}  a5 {[%clk 0:02:47]} 9. b3 {[%clk 0:02:41]}  b6 {[%clk 0:02:47]} 10. Bb2 {[%clk 0:02:42]}  Nbd7 {[%clk 0:02:34]} 11. Nb1 {[%clk 0:02:19]}  Bb7 {[%clk 0:02:26]} 12. Nbd2 {[%clk 0:02:19]}  c5 {[%clk 0:02:26]} 13. Ne5 {[%clk 0:01:56]}  Rc8 {[%clk 0:02:12]} 14. Rc1 {[%clk 0:01:54]}  Qe7 {[%clk 0:01:48]} 15. Nxd7 {[%clk 0:01:47]}  Qxd7 {[%clk 0:01:42]} 16. a4 {[%clk 0:01:43]}  f4 {[%clk 0:01:01]} 17. Bf3 {[%clk 0:01:06]}  Qf7 {[%clk 0:00:46]} 18. Qe2 {[%clk 0:00:32]}  Qg6 {[%clk 0:00:35]} 19. Kh1 {[%clk 0:00:28]}  fxe3 {[%clk 0:00:22]} 20. fxe3 {[%clk 0:00:28]}  Qh6 {[%clk 0:00:22]} 21. h3 {[%clk 0:00:25]}  Qh4 {[%clk 0:00:20]} 22. Qe1 {[%clk 0:00:21]}  Qg5 {[%clk 0:00:19]} 23. Rg1 {[%clk 0:00:13]}  Rce8 {[%clk 0:00:13]} 24. Nf1 {[%clk 0:00:12]}  Ne4 {[%clk 0:00:10]} 25. Rd1 {[%clk 0:00:10]}  Ng3+ {[%clk 0:00:08]} 26. Nxg3 {[%clk 0:00:10]}  Bxg3 {[%clk 0:00:09]} 27. Qe2 {[%clk 0:00:10]}  Bb8 {[%clk 0:00:09]} 28. Qe1 {[%clk 0:00:08]}  Rf7 {[%clk 0:00:07]} 29. Bg4 {[%clk 0:00:07]}  h5 {[%clk 0:00:07]} 30. Be2 {[%clk 0:00:07]}  Ref8 {[%clk 0:00:06]} 31. Qd2 {[%clk 0:00:06]}  Qg3 {[%clk 0:00:06]} 32. Rge1 {[%clk 0:00:01]}  Qh2# {[%clk 0:00:06]} 0-1


[Site "https://www.chess.com"]

[Event "Titled Tuesday Blitz March 22 Early 2022"]
[White "Griffith, Kyron"]
[Black "Lazavik, Denis"]
[WhiteFideId "2046318"]
[BlackFideId "13515110"]
[WhiteElo "2232"]
[BlackElo "2437"]
[Result "0-1"]
[Round "06"]
[TimeControl "180+1"]
[Date "2022.03.22"]
[WhiteClock "0:00:07"]
[BlackClock "0:00:16"]

1. e4 {[%clk 0:02:59]}  c5 {[%clk 0:03:00]} 2. Nf3 {[%clk 0:02:59]}  e6 {[%clk 0:03:00]} 3. d4 {[%clk 0:03:00]}  cxd4 {[%clk 0:03:01]} 4. Nxd4 {[%clk 0:03:01]}  Nc6 {[%clk 0:03:01]} 5. Nc3 {[%clk 0:02:59]}  Qc7 {[%clk 0:03:02]} 6. Be3 {[%clk 0:02:57]}  a6 {[%clk 0:03:02]} 7. a3 {[%clk 0:02:41]}  b5 {[%clk 0:03:00]} 8. Nxc6 {[%clk 0:02:40]}  Qxc6 {[%clk 0:03:00]} 9. Bd3 {[%clk 0:02:31]}  Bb7 {[%clk 0:02:57]} 10. O-O {[%clk 0:02:31]}  Nf6 {[%clk 0:02:56]} 11. Re1 {[%clk 0:02:19]}  Rc8 {[%clk 0:02:40]} 12. Qf3 {[%clk 0:02:12]}  d6 {[%clk 0:01:39]} 13. Qg3 {[%clk 0:02:03]}  Nd7 {[%clk 0:01:32]} 14. Bg5 {[%clk 0:01:45]}  h6 {[%clk 0:01:28]} 15. Bf4 {[%clk 0:01:40]}  g6 {[%clk 0:01:20]} 16. a4 {[%clk 0:01:32]}  bxa4 {[%clk 0:01:14]} 17. Nd5 {[%clk 0:01:24]}  g5 {[%clk 0:01:04]} 18. Bd2 {[%clk 0:01:03]}  Bg7 {[%clk 0:01:03]} 19. h4 {[%clk 0:00:43]}  Be5 {[%clk 0:00:58]} 20. Qg4 {[%clk 0:00:35]}  exd5 {[%clk 0:00:53]} 21. exd5 {[%clk 0:00:32]}  Qxd5 {[%clk 0:00:40]} 22. Rad1 {[%clk 0:00:17]}  Nf6 {[%clk 0:00:36]} 23. Qh3 {[%clk 0:00:11]}  g4 {[%clk 0:00:37]} 24. Qh1 {[%clk 0:00:11]}  Kf8 {[%clk 0:00:32]} 25. h5 {[%clk 0:00:11]}  g3 {[%clk 0:00:31]} 26. fxg3 {[%clk 0:00:09]}  Bd4+ {[%clk 0:00:30]} 27. Kf1 {[%clk 0:00:08]}  Ng4 {[%clk 0:00:20]} 28. Qh3 {[%clk 0:00:08]}  Nf2 {[%clk 0:00:18]} 29. Qd7 {[%clk 0:00:06]}  Qxg2+ {[%clk 0:00:17]} 30. Ke2 {[%clk 0:00:07]}  Bf3# {[%clk 0:00:16]} 0-1


[Site "https://www.chess.com"]

[Event "Titled Tuesday Blitz March 22 Early 2022"]
[White "Grischuk, Alexander"]
[Black "Vogel, Roven"]
[WhiteFideId "4126025"]
[BlackFideId "12908088"]
[WhiteElo "2762"]
[BlackElo "2516"]
[Result "0-1"]
[Round "06"]
[TimeControl "180+1"]
[Date "2022.03.22"]
[WhiteClock "0:00:07"]
[BlackClock "0:00:04"]

1. e4 {[%clk 0:03:00]}  e5 {[%clk 0:02:58]} 2. Nf3 {[%clk 0:03:00]}  Nc6 {[%clk 0:02:59]} 3. Bb5 {[%clk 0:03:00]}  a6 {[%clk 0:02:59]} 4. Ba4 {[%clk 0:03:00]}  Nf6 {[%clk 0:03:00]} 5. O-O {[%clk 0:03:00]}  Be7 {[%clk 0:03:00]} 6. d3 {[%clk 0:02:59]}  b5 {[%clk 0:02:57]} 7. Bb3 {[%clk 0:02:59]}  d6 {[%clk 0:02:58]} 8. a4 {[%clk 0:02:59]}  Bd7 {[%clk 0:02:58]} 9. Bd2 {[%clk 0:02:59]}  O-O {[%clk 0:02:47]} 10. Re1 {[%clk 0:02:59]}  Bg4 {[%clk 0:02:37]} 11. c3 {[%clk 0:02:59]}  Na5 {[%clk 0:02:36]} 12. Bc2 {[%clk 0:02:57]}  c5 {[%clk 0:02:35]} 13. h3 {[%clk 0:02:57]}  Bh5 {[%clk 0:02:30]} 14. Be3 {[%clk 0:02:49]}  Qc7 {[%clk 0:02:17]} 15. Nbd2 {[%clk 0:02:49]}  d5 {[%clk 0:02:17]} 16. axb5 {[%clk 0:01:56]}  d4 {[%clk 0:01:58]} 17. cxd4 {[%clk 0:01:51]}  cxd4 {[%clk 0:01:58]} 18. b6 {[%clk 0:01:46]}  Qxb6 {[%clk 0:01:56]} 19. Bg5 {[%clk 0:01:46]}  Bb4 {[%clk 0:01:43]} 20. Rf1 {[%clk 0:01:28]}  Nd7 {[%clk 0:01:39]} 21. g4 {[%clk 0:01:06]}  Bg6 {[%clk 0:01:39]} 22. Nh4 {[%clk 0:01:07]}  h6 {[%clk 0:01:31]} 23. Nxg6 {[%clk 0:01:07]}  fxg6 {[%clk 0:01:29]} 24. Bh4 {[%clk 0:01:08]}  g5 {[%clk 0:01:16]} 25. Bg3 {[%clk 0:01:07]}  Bd6 {[%clk 0:01:16]} 26. Nf3 {[%clk 0:01:05]}  Rab8 {[%clk 0:00:42]} 27. h4 {[%clk 0:01:04]}  gxh4 {[%clk 0:00:42]} 28. Nxh4 {[%clk 0:01:05]}  Nc6 {[%clk 0:00:34]} 29. Nf5 {[%clk 0:01:05]}  Rf6 {[%clk 0:00:29]} 30. g5 {[%clk 0:01:01]}  hxg5 {[%clk 0:00:29]} 31. Qh5 {[%clk 0:00:59]}  Bf8 {[%clk 0:00:25]} 32. Qxg5 {[%clk 0:00:56]}  Nd8 {[%clk 0:00:24]} 33. b4 {[%clk 0:00:51]}  Qe6 {[%clk 0:00:18]} 34. Rfb1 {[%clk 0:00:46]}  Qf7 {[%clk 0:00:14]} 35. Bb3 {[%clk 0:00:30]}  Ne6 {[%clk 0:00:14]} 36. Qh4 {[%clk 0:00:31]}  Rxb4 {[%clk 0:00:13]} 37. Bd5 {[%clk 0:00:23]}  a5 {[%clk 0:00:10]} 38. Rc1 {[%clk 0:00:22]}  Ndc5 {[%clk 0:00:09]} 39. Rxc5 {[%clk 0:00:15]}  Bxc5 {[%clk 0:00:08]} 40. Rxa5 {[%clk 0:00:15]}  Bf8 {[%clk 0:00:06]} 41. Ra8 {[%clk 0:00:15]}  Rb1+ {[%clk 0:00:03]} 42. Kg2 {[%clk 0:00:14]}  Rxf5 {[%clk 0:00:03]} 43. exf5 {[%clk 0:00:07]}  Nf4+ {[%clk 0:00:03]} 44. Qxf4 {[%clk 0:00:08]}  Qxd5+ {[%clk 0:00:04]} 45. Qf3 {[%clk 0:00:08]}  Rg1+ {[%clk 0:00:02]} 46. Kxg1 {[%clk 0:00:08]}  Qxf3 {[%clk 0:00:03]} 47. Re8 {[%clk 0:00:08]}  Qxf5 {[%clk 0:00:04]} 48. Bxe5 {[%clk 0:00:08]}  Kf7 {[%clk 0:00:05]} 49. Bg3 {[%clk 0:00:07]}  Kxe8 {[%clk 0:00:04]} 0-1


[Site "https://www.chess.com"]